fUST/lending_fUST_20250927
["ID","MTS","AMOUNT","RATE_DAILY","PERIOD"]
[387831090,1758903043272,-151.0,0.000413,120]
[387831091,1758903043281,-151.0,0.000413,120]
[387831092,1758903043290,-310.010616,0.000413,120]
[387831093,1758903043299,-151.0,0.000413,120]
[387831094,1758903043309,-151.0,0.000413,120]
[387831095,1758903043319,-281.376126,0.000413,120]
[387831096,1758903043328,-281.376126,0.000413,120]
[387831097,1758903043338,-374.056534,0.000413,120]
[387831098,1758903043347,-151.0,0.000413,120]
[387831099,1758903043356,-281.376126,0.000413,120]
[387831100,1758903043366,-281.376126,0.000413,120]
[387831102,1758903043376,-374.056534,0.000413,120]
[387831104,1758903043385,-374.056534,0.000413,120]
[387831106,1758903043394,-374.056534,0.000413,120]
[387831108,1758903043403,-151.0,0.000413,120]
[387831110,1758903043412,-151.0,0.000413,120]
[387831112,1758903043422,-500.0,0.0004137,120]
[387831113,1758903043431,-151.0,0.0004137,120]
[387831115,1758903043441,-151.0,0.0004137,120]
[387831116,1758903043451,-151.0,0.0004137,120]
[387831117,1758903043460,-151.0,0.0004137,120]
[387831118,1758903043469,-200.0,0.00041439,30]
[387831119,1758903043478,-328016.79519196,0.0004144,7]
[387831122,1758903044015,-151.0,0.0003544,7]
[387831123,1758903044025,-151.0,0.000405,120]
[387831124,1758903044035,-80.76199589,0.000413,120]
[387831125,1758903044051,-70.23800411,0.000413,120]
[387831126,1758903044061,-20531.45564589,0.0004144,7]
[387831127,1758903044084,-29073.39280751,0.0004144,7]
[387831128,1758903044100,-6811.47732219,0.0004144,7]
[387831129,1758903044115,-11311.35386219,0.0004144,7]
[387831130,1758903044130,-2888.48717198,0.0004144,7]
[387831131,1758903044145,-8582.65082951,0.0004144,7]
[387831132,1758903044159,-186204.24382308,0.0004144,7]
[387831133,1758903044173,-28475.31915965,0.0004144,7]
[387831134,1758903044187,-10157.15469935,0.0004144,7]
[387831135,1758903044202,-199.041029,0.000413,30]
[387831136,1758903044212,-338.51451257,0.0004144,7]
[387831137,1758903044224,-2508.32230868,0.0004144,7]
[387831138,1758903044235,-1201.25900232,0.0004144,7]
[387831145,1758903045552,-199.041029,0.0003544,7]
[387831146,1758903045562,-151.0,0.0003544,7]
[387831147,1758903045571,-199.041029,0.0003544,7]
[387831148,1758903045580,-43.647942,0.000405,30]
[387831152,1758903045654,-155.393087,0.000405,30]
[387831153,1758903045663,-151.0,0.000405,120]
[387831154,1758903045673,-199.041029,0.000405,30]
[387831155,1758903045683,-199.041029,0.000413,30]
[387831156,1758903045693,-151.0,0.000413,120]
[387831157,1758903045702,-199.041029,0.000413,30]
[387831158,1758903045712,-4465.82488525,0.0004144,7]
[387831159,1758903045723,-366.12177238,0.0004144,7]
[387831161,1758903046667,-151.0,0.0003544,7]
[387831162,1758903046676,-233.42872,0.0003544,7]
[387831163,1758903046686,-359067.62700549,0.0004144,7]
[387831164,1758903046696,-151.0,0.0004144,120]
[387831165,1758903046705,-151.0,0.0004144,120]
[387831166,1758903046715,-153.996312,0.0004144,120]
[387831167,1758903046724,-195.382477,0.0004144,120]
[387831168,1758903046734,-151.0,0.0004144,120]
[387831169,1758903046744,-151.0,0.0004144,120]
[387831170,1758903046753,-151.0,0.0004144,120]
[387831171,1758903046766,-151.0,0.0004144,120]
[387831172,1758903046776,-151.0,0.0004144,120]
[387831173,1758903046785,-151.0,0.0004144,120]
[387831174,1758903046795,-151.0,0.0004144,120]
[387831175,1758903046804,-151.0,0.0004144,120]
[387831176,1758903046814,-151.0,0.0004144,120]
[387831177,1758903046824,-151.0,0.0004144,120]
[387831178,1758903046835,-151.0,0.0004144,120]
[387831179,1758903046846,-151.0,0.0004144,120]
[387831180,1758903046855,-151.0,0.0004144,120]
[387831181,1758903046865,-151.0,0.0004144,120]
[387831182,1758903046875,-151.0,0.0004144,120]
[387831183,1758903046886,-151.0,0.0004144,120]
[387831184,1758903046895,-249.784963,0.0004144,120]
[387831185,1758903046905,-151.0,0.0004144,15]
[387831186,1758903046914,-151.0,0.0004144,15]
[387831187,1758903046923,-151.0,0.0004144,14]
[387831188,1758903046933,-151.0,0.0004144,120]
[387831189,1758903046943,-151.0,0.0004144,120]
[387831190,1758903046953,-151.0,0.0004144,120]
[387831191,1758903046962,-201.438149,0.0004144,120]
[387831192,1758903046972,-164.270855,0.0004144,120]
[387831193,1758903046982,-164.270855,0.0004144,120]
[387831194,1758903046991,-164.270855,0.0004144,120]
[387831195,1758903047000,-164.270855,0.0004144,120]
[387831196,1758903047011,-151.0,0.0004144,120]
[387831197,1758903047020,-151.0,0.0004144,120]
[387831198,1758903047030,-151.0,0.0004144,120]
[387831199,1758903047040,-298.541981,0.0004144,120]
[387831200,1758903047054,-211.054008,0.0004144,120]
[387831201,1758903047063,-211.054008,0.0004144,120]
[387831202,1758903047073,-211.054008,0.0004144,120]
[387831203,1758903047082,-211.054008,0.0004144,120]
[387831204,1758903047093,-310.010616,0.0004144,120]
[387831205,1758903047102,-310.010616,0.0004144,120]
[387831206,1758903047112,-151.0,0.0004144,120]
[387831207,1758903047123,-151.0,0.0004144,120]
[387831208,1758903047133,-310.010616,0.0004144,120]
[387831209,1758903047142,-151.0,0.0004144,120]
[387831210,1758903047150,-310.010616,0.0004144,120]
[387831211,1758903047159,-151.0,0.0004144,120]
[387831212,1758903047168,-151.0,0.0004144,120]
[387831213,1758903047177,-165.322919,0.0004144,120]
[387831214,1758903047187,-281.376126,0.0004144,120]
[387831215,1758903047196,-374.056534,0.0004144,120]
[387831216,1758903047205,-281.376126,0.0004144,120]
[387831217,1758903047214,-151.0,0.0004144,120]
[387831218,1758903047224,-281.376126,0.0004144,120]
[387831219,1758903047234,-281.376126,0.0004144,120]
[387831220,1758903047243,-374.056534,0.0004144,120]
[387831221,1758903047252,-374.056534,0.0004144,120]
[387831222,1758903047263,-374.056534,0.0004144,120]
[387831223,1758903047274,-151.0,0.0004144,120]
[387831224,1758903047283,-151.0,0.0004144,120]
[387831225,1758903047292,-151.0,0.0004144,120]
[387831226,1758903047301,-199.041029,0.0004144,30]
[387831227,1758903047310,-199.041029,0.0004144,30]
[387831228,1758903047320,-199.041029,0.0004144,30]
[387831229,1758903047329,-914.90125369,0.00041454,10]
[387831230,1758903047339,-887.0,0.00041483,5]
[387831231,1758903047348,-98810.24042548,0.000415,26]
[387831232,1758903047360,-1189.75957452,0.000415,26]
[387831233,1758903047371,-1517.24523526,0.00041616,10]
[387831234,1758903047380,-500.0,0.00041616,10]
[387831235,1758903047390,-580.0,0.00041644,120]
[387831236,1758903047401,-168.0,0.00041656,2]
[387831237,1758903047411,-1000.0,0.00041747,30]
[387831238,1758903047421,-61836.40933919,0.000418,26]
[387831247,1758903213005,460.0,0.00031704,120]
[387831249,1758903290147,-342.05676835,0.000199,2]
[387831250,1758903290180,-342.05676835,0.00021372,2]
[387831251,1758903290211,-342.05676835,0.00022844,2]
[387831252,1758903422836,-903.75505225,0.000199,2]
[387831253,1758903422870,-903.75505219,0.00021372,2]
[387831254,1758903422902,-903.75505219,0.00022844,2]
[387831255,1758903422934,-903.75505219,0.00024316,2]
[387831297,1758903908698,-322.47940943,0.000199,2]
[387831298,1758903908727,-150.0,0.000211,2]
[387831299,1758903908759,-322.47940943,0.00021372,2]
[387831300,1758903908787,-157.8,0.000215,2]
[387831301,1758903908817,-322.47940943,0.00022844,2]
[387831302,1758903908846,-238.0,0.00025,2]
[387831335,1758903953665,-540.56568473,0.000199,2]
[387831336,1758903953697,-540.56568466,0.00021372,2]
[387831337,1758903953727,-540.56568466,0.00024316,2]
[387831364,1758904119345,-705.35981113,0.000199,2]
[387831365,1758904119377,-705.35981109,0.00021372,2]
[387831366,1758904119408,-705.35981109,0.00022844,2]
[387831373,1758904129186,-1000.0,0.000235,2]
[387831374,1758904129216,-507.28967053,0.0002465,2]
[387831378,1758904133703,-8708.84996329,0.0002465,2]
[387831379,1758904133918,-10000.01,0.0002465,2]
[387831380,1758904134212,-10000.01,0.0002465,2]
[387831381,1758904134497,-3966.53775413,0.0002465,2]
[387831398,1758904232611,-150.99999931,0.00025,5]
[387831399,1758904232621,-149.00000069,0.000259,2]
[387831400,1758904232636,-10.99999931,0.000259,2]
[387831401,1758904232646,-369.332595,0.00026371,2]
[387831403,1758904232656,-266.87836206,0.00027259,7]
[387831406,1758904232833,-438.48144903,0.00027259,7]
[387831407,1758904232844,-233.71402077,0.00027392,2]
[387831408,1758904232854,-1414.4548488,0.00027397,2]
[387831409,1758904232864,-160.0,0.00027397,2]
[387831410,1758904232873,-300.0,0.0002783,2]
[387831411,1758904232882,-500.0,0.00027831,2]
[387831412,1758904232892,-500.0,0.00027831,2]
[387831413,1758904232902,-500.0,0.00027831,2]
[387831414,1758904232911,-249.62232993,0.00027831,2]
[387831415,1758904232921,-500.0,0.00027831,2]
[387831416,1758904232930,-500.0,0.00027831,2]
[387831417,1758904232939,-500.0,0.00027831,2]
[387831418,1758904232949,-500.0,0.00027831,2]
[387831419,1758904232959,-500.0,0.00027831,2]
[387831420,1758904232968,-500.0,0.00027831,2]
[387831421,1758904232978,-425.15639659,0.00027831,2]
[387831422,1758904232987,-398.46002688,0.00027831,2]
[387831423,1758904232996,-211.62079951,0.00027831,2]
[387831424,1758904233006,-500.0,0.00027831,2]
[387831425,1758904233015,-500.0,0.00027831,2]
[387831426,1758904233027,-500.0,0.00027831,2]
[387831427,1758904233120,-500.0,0.00027831,2]
[387831428,1758904233132,-500.0,0.00027831,2]
[387831429,1758904233142,-499.99,0.00027831,2]
[387831430,1758904233152,-500.0,0.00027831,2]
[387831431,1758904233162,-500.0,0.00027831,2]
[387831432,1758904233172,-500.0,0.00027831,2]
[387831433,1758904233183,-500.0,0.00027831,2]
[387831434,1758904233193,-500.0,0.00027831,2]
[387831435,1758904233203,-500.0,0.00027831,2]
[387831436,1758904233213,-500.0,0.00027831,2]
[387831437,1758904233223,-500.0,0.00027831,2]
[387831438,1758904233232,-452.06177576,0.00027831,2]
[387831439,1758904233242,-249.964,0.00027831,2]
[387831440,1758904233251,-633.51665703,0.00027831,2]
[387831441,1758904233261,-500.0,0.00027831,2]
[387831442,1758904233271,-500.0,0.00027831,2]
[387831443,1758904233283,-500.0,0.00027831,2]
[387831444,1758904233292,-500.0,0.00027831,2]
[387831445,1758904233302,-397.0551714,0.00027831,2]
[387831446,1758904233312,-500.0,0.00027831,2]
[387831447,1758904233322,-500.0,0.00027831,2]
[387831448,1758904233332,-500.0,0.00027831,2]
[387831449,1758904233342,-500.0,0.00027831,2]
[387831450,1758904233351,-501.4679143,0.00027831,2]
[387831451,1758904233364,-500.0,0.00027831,2]
[387831452,1758904233373,-500.0,0.00027831,2]
[387831453,1758904233383,-500.0,0.00027831,2]
[387831454,1758904233393,-500.0,0.00027831,2]
[387831455,1758904233402,-500.0,0.00027831,2]
[387831456,1758904233412,-500.0,0.00027831,2]
[387831457,1758904233422,-500.0,0.00027831,2]
[387831458,1758904233431,-500.0,0.00027831,2]
[387831459,1758904233440,-500.0,0.00027831,2]
[387831460,1758904233450,-500.0,0.00027831,2]
[387831461,1758904233460,-500.0,0.00027831,2]
[387831462,1758904233470,-500.0,0.00027831,2]
[387831463,1758904233480,-500.0,0.00027831,2]
[387831464,1758904233490,-500.0,0.00027831,2]
[387831465,1758904233499,-500.0,0.00027831,2]
[387831466,1758904233509,-500.0,0.00027831,2]
[387831467,1758904233520,-500.0,0.00027831,2]
[387831468,1758904233532,-500.0,0.00027831,2]
[387831469,1758904233542,-500.0,0.00027831,2]
[387831470,1758904233552,-500.0,0.00027831,2]
[387831471,1758904233562,-500.0,0.00027831,2]
[387831472,1758904233572,-500.0,0.00027831,2]
[387831473,1758904233583,-500.0,0.00027831,2]
[387831474,1758904233592,-500.0,0.00027831,2]
[387831475,1758904233603,-500.0,0.00027831,2]
[387831476,1758904233612,-500.0,0.00027831,2]
[387831477,1758904233622,-500.0,0.00027831,2]
[387831478,1758904233632,-500.0,0.00027831,2]
[387831479,1758904233642,-500.0,0.00027831,2]
[387831480,1758904233652,-500.0,0.00027831,2]
[387831481,1758904233661,-500.0,0.00027831,2]
[387831482,1758904233670,-500.0,0.00027831,2]
[387831483,1758904233679,-500.0,0.00027831,2]
[387831484,1758904233689,-500.0,0.00027831,2]
[387831485,1758904233698,-500.0,0.00027831,2]
[387831486,1758904233708,-255.25526103,0.00027831,2]
[387831487,1758904233718,-84.332735,0.00027831,2]
[387831488,1758904233737,-415.667265,0.00027831,2]
[387831489,1758904233747,-46.560735,0.00027831,2]
[387831490,1758904233834,-453.439265,0.00027831,2]
[387831491,1758904233844,-500.0,0.00027831,2]
[387831492,1758904233854,-307.36657149,0.00027831,2]
[387831493,1758904233864,-500.0,0.00027831,2]
[387831494,1758904233874,-480.33114259,0.00027831,2]
[387831495,1758904233885,-500.0,0.00027831,2]
[387831496,1758904233895,-500.0,0.00027831,2]
[387831497,1758904233904,-500.0,0.00027831,2]
[387831498,1758904233914,-628.5320857,0.00027831,2]
[387831499,1758904233924,-832.228,0.00027831,2]
[387831500,1758904233935,-14354.77159716,0.00027832,2]
[387831501,1758904233947,-370.0,0.00027832,2]
[387831502,1758904233959,-908.91385494,0.00027832,2]
[387831503,1758904233969,-380.0,0.00028498,2]
[387831504,1758904233979,-705.35981109,0.00028731,10]
[387831505,1758904233990,-500.0,0.00028975,5]
[387831506,1758904234000,-1000.0,0.00029523,5]
[387831507,1758904234011,-420.0,0.00030061,2]
[387831508,1758904234021,-281.09887714,0.00030071,5]
[387831509,1758904234033,-302.51602579,0.00031672,28]
[387831510,1758904234042,-60.80569569,0.00031675,16]
[387831511,1758904234056,-644.5541154,0.00031675,16]
[387831512,1758904234066,-300.0,0.000317,2]
[387831513,1758904234076,-155.0,0.00031827,2]
[387831514,1758904234085,-252.0,0.00031841,60]
[387831515,1758904234095,-796.34,0.00032102,3]
[387831516,1758904234105,-152.648,0.0003211,31]
[387831517,1758904234175,-58997.7954837,0.00032112,2]
[387831518,1758904234193,-15599.0052821,0.00032112,2]
[387831519,1758904234202,-235.94,0.00032112,3]
[387831520,1758904234212,-1061.75,0.00032112,3]
[387831521,1758904234223,-530.87,0.00032112,3]
[387831522,1758904234232,-265.44,0.00032112,3]
[387831523,1758904234242,-18752.44514799,0.00032122,2]
[387831525,1758904234254,-2070.9,0.00032122,2]
[387831629,1758904238592,-160.0,0.00027395,2]
[387831630,1758904238601,-204.27240022,0.00027831,2]
[387831631,1758904238611,-490.20380652,0.00027831,2]
[387831632,1758904238623,-9.79619348,0.00027831,2]
[387831633,1758904238633,-186.16680672,0.00027831,2]
[387831634,1758904238642,-165.83411015,0.00027831,2]
[387831635,1758904238651,-500.0,0.00027831,2]
[387831636,1758904238661,-500.0,0.00027831,2]
[387831637,1758904238670,-257.58861358,0.00027831,2]
[387831638,1758904238681,-242.41138642,0.00027831,2]
[387831639,1758904238691,-469.08334741,0.00027831,2]
[387831640,1758904238702,-30.91665259,0.00027831,2]
[387831641,1758904238711,-387.95185897,0.00032122,2]
[387831642,1758904238723,-326.75342642,0.00032122,2]
[387831643,1758904238762,-95338.61144265,0.00032122,2]
[387831644,1758904238771,-587.0,0.00032472,2]
[387831645,1758904238781,-160.0,0.00032753,2]
[387831646,1758904238791,-500.0,0.00032876,120]
[387831647,1758904238801,-332.219321,0.00032877,2]
[387831648,1758904238810,-705.35981109,0.00033147,19]
[387831649,1758904238819,-160.0,0.000333,2]
[387831650,1758904238829,-500.0,0.00033439,2]
[387831651,1758904238838,-1000.0,0.00033439,2]
[387831652,1758904238847,-1000.0,0.00033439,2]
[387831653,1758904238857,-334.0,0.00033439,2]
[387831654,1758904238867,-1415.66,0.00033482,3]
[387831655,1758904238876,-471.88,0.00033482,3]
[387831656,1758904238886,-2123.5,0.00033482,3]
[387831657,1758904238895,-1061.74,0.00033482,3]
[387831658,1758904238903,-530.88,0.00033482,3]
[387831659,1758904238909,-500.0,0.00033698,120]
[387831660,1758904238916,-260.0,0.00033848,2]
[387831661,1758904238924,-360.0,0.00034396,2]
[387831662,1758904238931,-290.44,0.0003452,120]
[387831663,1758904238937,-705.35981109,0.00034619,23]
[387831664,1758904238944,-460.0,0.00034944,2]
[387831665,1758904238951,-150.0,0.00035,30]
[387831666,1758904238959,-560.0,0.00035492,2]
[387831667,1758904238968,-500.0,0.0003555,5]
[387831668,1758904238975,-660.0,0.0003604,2]
[387831669,1758904238982,-705.35981109,0.00036091,26]
[387831670,1758904238989,-509.74174054,0.00036179,120]
[387831671,1758904238996,-760.0,0.00036588,2]
[387831672,1758904239003,-500.0,0.00036773,5]
[387831673,1758904239010,-500.0,0.00036773,5]
[387831674,1758904239017,-500.0,0.00036773,5]
[387831675,1758904239023,-500.0,0.00036773,5]
[387831676,1758904239032,-500.0,0.00036773,5]
[387831677,1758904239041,-206492.284193,0.00036779,3]
[387831678,1758904239050,-116992.539616,0.00036779,3]
[387831679,1758904239059,-236580.37485603,0.00036789,60]
[387831680,1758904239070,-1113.05740265,0.00036789,60]
[387831681,1758904239085,-110274.35326139,0.00036789,60]
[387831682,1758904239096,-1630.82688156,0.00036789,60]
[387831683,1758904239108,-356017.51772335,0.00036789,60]
[387831684,1758904239117,-1985.19,0.000368,14]
[387831685,1758904239126,-440.0,0.00037136,2]
[387831686,1758904239135,-492.29539961,0.000373,2]
[387831687,1758904239144,-1000.0,0.00037321,5]
[387831688,1758904239153,-1000.0,0.00037321,5]
[387831689,1758904239162,-1000.0,0.00037321,5]
[387831690,1758904239172,-786.38249601,0.000374,2]
[387831691,1758904239181,-705.35981109,0.00037563,29]
[387831692,1758904239190,-492.29539957,0.00038322,2]
[387831693,1758904239200,-332.219321,0.00038356,2]
[387831694,1758904239209,-164.74712653,0.00038356,2]
[387831695,1758904239218,-605.04669376,0.0003892,2]
[387831696,1758904239228,-1074.56292812,0.0003892,2]
[387831697,1758904239237,-192.61025297,0.0003892,2]
[387831698,1758904239246,-984.68121242,0.00039149,120]
[387831699,1758904239256,-492.29539957,0.00039344,2]
[387831700,1758904239265,-182.81983216,0.00039368,2]
[387831701,1758904239274,-369.332595,0.00039556,2]
[387831702,1758904239284,-984.68121242,0.00040306,120]
[387831703,1758904239293,-492.29539957,0.00040366,2]
[387831704,1758904239302,-175.0,0.00040495,2]
[387831705,1758904239312,-1000.0,0.000405,60]
[387831706,1758904239322,-705.35981109,0.00040506,35]
[387831707,1758904239331,-301.1182427,0.00040877,2]
[387831708,1758904239340,-228.26638777,0.00040996,2]
[387831709,1758904239350,-1172.44730741,0.00041,120]
[387831710,1758904239361,-159.0,0.00041,90]
[387831711,1758904239370,-7799.50264105,0.00041086,3]
[387831712,1758904239379,-15599.0052821,0.00041088,3]
[387831713,1758904239388,-500.0,0.00041096,120]
[387831714,1758904239399,-50000.0,0.00041096,120]
[387831715,1758904239409,-62284.0317218,0.00041098,2]
[387831716,1758904239418,-1985.19,0.000411,14]
[387831717,1758904239427,-1000.0,0.0004115,60]
[387831718,1758904239439,-175.0,0.000412,2]
[387831719,1758904239450,-1000.0,0.00041381,2]
[387831720,1758904239459,-1000.0,0.00041381,2]
[387831721,1758904239469,-1000.0,0.00041381,2]
[387831722,1758904239478,-1000.0,0.00041381,2]
[387831723,1758904239487,-1000.0,0.00041381,2]
[387831724,1758904239496,-1000.0,0.00041381,2]
[387831725,1758904239506,-1000.0,0.00041381,2]
[387831726,1758904239515,-1000.0,0.00041381,2]
[387831727,1758904239526,-1000.0,0.00041381,2]
[387831728,1758904239536,-1000.0,0.00041381,2]
[387831729,1758904239545,-1000.0,0.00041381,2]
[387831730,1758904239554,-1000.0,0.00041381,2]
[387831731,1758904239563,-1000.0,0.00041381,2]
[387831732,1758904239572,-757.08192936,0.00041381,2]
[387831733,1758904239581,-492.29539957,0.00041388,2]
[387831734,1758904239591,-984.68121242,0.00041498,120]
[387831735,1758904239600,-151.0,0.000415,13]
[387831736,1758904239610,-10104.2713298,0.00041605,2]
[387831737,1758904239619,-7377.3148267,0.00041605,2]
[387831738,1758904239628,-476.0,0.00041629,120]
[387831739,1758904239638,-175.0,0.0004168,7]
[387831740,1758904239647,-151.0,0.00041799,26]
[387831741,1758904239656,-381.59001954,0.00041799,26]
[387831742,1758904239665,-151.0,0.00041799,26]
[387831743,1758904239674,-350.0,0.00041799,26]
[387831744,1758904239756,-151.0,0.00041799,26]
[387831745,1758904239771,-350.0,0.00041799,26]
[387831746,1758904239781,-151.0,0.00041799,26]
[387831747,1758904239790,-350.0,0.00041799,26]
[387831748,1758904239800,-151.0,0.00041799,26]
[387831749,1758904239809,-200.0,0.00041799,26]
[387831750,1758904239819,-350.0,0.00041799,26]
[387831751,1758904239828,-151.0,0.00041799,26]
[387831752,1758904239838,-200.0,0.00041799,26]
[387831753,1758904239848,-240.46137017,0.00041799,26]
[387831754,1758904239857,-200.0,0.00041799,26]
[387831755,1758904239866,-350.0,0.00041799,26]
[387831756,1758904239875,-200.0,0.00041799,26]
[387831757,1758904239884,-350.0,0.00041799,26]
[387831758,1758904239894,-200.0,0.00041799,26]
[387831759,1758904239905,-350.0,0.00041799,26]
[387831760,1758904239914,-200.0,0.00041799,26]
[387831761,1758904239923,-350.0,0.00041799,26]
[387831762,1758904239933,-200.0,0.00041799,26]
[387831763,1758904239942,-350.0,0.00041799,26]
[387831764,1758904239951,-200.0,0.00041799,26]
[387831765,1758904239961,-350.0,0.00041799,26]
[387831766,1758904239970,-200.0,0.00041799,26]
[387831767,1758904239979,-350.0,0.00041799,26]
[387831768,1758904239989,-200.0,0.00041799,26]
[387831769,1758904239998,-350.0,0.00041799,26]
[387831770,1758904240008,-256.14491206,0.00041799,26]
[387831771,1758904240017,-350.0,0.00041799,26]
[387831772,1758904240026,-500.0,0.00041799,26]
[387831773,1758904240037,-500.0,0.00041799,26]
[387831774,1758904240047,-151.0,0.00041799,26]
[387831776,1758904240056,-500.0,0.00041799,26]
[387831777,1758904240066,-237.20704903,0.00041799,26]
[387831779,1758904240075,-500.0,0.00041799,26]
[387831782,1758904240084,-152.23028952,0.00041799,26]
[387831784,1758904240094,-500.0,0.00041799,26]
[387831786,1758904240103,-500.0,0.00041799,26]
[387831788,1758904240112,-500.0,0.00041799,26]
[387831789,1758904240121,-500.0,0.00041799,26]
[387831790,1758904240130,-500.0,0.00041799,26]
[387831791,1758904240139,-500.0,0.00041799,26]
[387831793,1758904240148,-500.0,0.00041799,26]
[387831795,1758904240159,-500.0,0.00041799,26]
[387831796,1758904240169,-500.0,0.00041799,26]
[387831797,1758904240179,-720.84242222,0.000418,60]
[387831798,1758904240189,-38163.59066081,0.000418,26]
[387831799,1758904240199,-600.0,0.0004182,30]
[387831800,1758904240209,-476.0,0.00041866,2]
[387831801,1758904240219,-644.66699818,0.00041973,10]
[387831802,1758904240228,-705.35981109,0.00041978,38]
[387831803,1758904240238,-151.0,0.00041985,3]
[387831804,1758904240247,-151.0,0.00041985,3]
[387831805,1758904240257,-500.0,0.00041985,3]
[387831806,1758904240267,-151.0,0.00041985,3]
[387831807,1758904240276,-151.0,0.00041985,3]
[387831808,1758904240288,-500.0,0.00041985,3]
[387831809,1758904240297,-151.0,0.00041985,3]
[387831810,1758904240307,-151.0,0.00041985,3]
[387831811,1758904240317,-151.0,0.00041985,3]
[387831812,1758904240326,-151.0,0.00041985,3]
[387831813,1758904240336,-151.0,0.00041985,3]
[387831815,1758904240345,-151.0,0.00041985,3]
[387831816,1758904240355,-151.0,0.00041985,3]
[387831818,1758904240370,-151.0,0.00041985,3]
[387831819,1758904240379,-151.0,0.00041985,3]
[387831820,1758904240388,-500.0,0.00041985,3]
[387831821,1758904240397,-500.0,0.00041985,3]
[387831823,1758904240408,-500.0,0.00041985,3]
[387831824,1758904240418,-151.55455188,0.00041985,3]
[387831825,1758904240427,-151.45944655,0.00041985,3]
[387831826,1758904240437,-151.0,0.00041985,3]
[387831827,1758904240447,-151.0,0.00041985,3]
[387831828,1758904240456,-151.0,0.00041985,3]
[387831829,1758904240466,-151.0,0.00041985,3]
[387831830,1758904240476,-500.0,0.00041985,3]
[387831831,1758904240485,-168.27148257,0.00041985,3]
[387831832,1758904240495,-100000.0,0.00042,26]
[387831833,1758904240505,-153.0,0.00042087,30]
[387831834,1758904240515,-153.0,0.00042087,30]
[387831835,1758904240524,-153.0,0.00042087,30]
[387831836,1758904240534,-153.0,0.00042087,30]
[387831837,1758904240544,-153.0,0.00042087,30]
[387831838,1758904240553,-153.0,0.00042087,30]
[387831839,1758904240562,-153.0,0.00042087,30]
[387831841,1758904240572,-153.0,0.00042087,30]
[387831842,1758904240582,-153.0,0.00042087,30]
[387831843,1758904240592,-153.0,0.00042087,30]
[387831844,1758904240602,-153.0,0.00042087,30]
[387831845,1758904240611,-153.0,0.00042087,30]
[387831846,1758904240620,-175.0,0.00042093,2]
[387831847,1758904240630,-6471.57573729,0.00042249,2]
[387831848,1758904240639,-632.59299094,0.00042259,3]
[387831849,1758904240649,-275.94986551,0.00042259,3]
[387831850,1758904240659,-500.0,0.00042259,3]
[387831851,1758904240668,-151.0,0.00042259,3]
[387831852,1758904240677,-151.0,0.00042259,3]
[387831853,1758904240687,-151.0,0.00042259,3]
[387831854,1758904240697,-169.0,0.00042259,3]
[387831855,1758904240706,-151.0,0.00042259,3]
[387831856,1758904240716,-151.0,0.00042259,3]
[387831857,1758904240725,-151.0,0.00042259,3]
[387831858,1758904240735,-151.0,0.00042259,3]
[387831859,1758904240744,-500.0,0.00042259,3]
[387831860,1758904240753,-500.0,0.00042259,3]
[387831861,1758904240762,-500.0,0.00042259,3]